[Event "Titled Tuesday Blitz April 18 Late 2023"]
[White "Pichot, Alan"]
[Black "Sabuk, Piotr"]
[WhiteFideId "110973"]
[BlackFideId "1137565"]
[WhiteElo "2573"]
[BlackElo "2298"]
[Result "1/2-1/2"]
[Round "06"]
[TimeControl "180+2"]
[Date "2023.04.18"]
[WhiteClock "0:00:10"]
[BlackClock "0:00:07"]

1. e4 {[%clk 0:02:55]}  e5 {[%clk 0:02:58]} 2. Nf3 {[%clk 0:02:52]}  Nc6 {[%clk 0:02:58]} 3. Bb5 {[%clk 0:02:53]}  a6 {[%clk 0:02:58]} 4. Ba4 {[%clk 0:02:52]}  Nf6 {[%clk 0:02:58]} 5. O-O {[%clk 0:02:53]}  Be7 {[%clk 0:02:58]} 6. Re1 {[%clk 0:02:53]}  b5 {[%clk 0:02:59]} 7. Bb3 {[%clk 0:02:54]}  d6 {[%clk 0:03:00]} 8. c3 {[%clk 0:02:54]}  O-O {[%clk 0:02:59]} 9. h3 {[%clk 0:02:54]}  Re8 {[%clk 0:02:58]} 10. Ng5 {[%clk 0:02:52]}  Rf8 {[%clk 0:02:58]} 11. Nf3 {[%clk 0:02:53]}  Re8 {[%clk 0:02:58]} 12. d4 {[%clk 0:02:53]}  Bb7 {[%clk 0:02:58]} 13. Ng5 {[%clk 0:02:51]}  Rf8 {[%clk 0:02:58]} 14. Nf3 {[%clk 0:02:52]}  Re8 {[%clk 0:02:59]} 15. Nbd2 {[%clk 0:02:52]}  Bf8 {[%clk 0:02:59]} 16. a3 {[%clk 0:02:49]}  h6 {[%clk 0:02:55]} 17. Bc2 {[%clk 0:02:48]}  Nb8 {[%clk 0:02:40]} 18. b3 {[%clk 0:02:47]}  Nbd7 {[%clk 0:02:38]} 19. Bb2 {[%clk 0:02:46]}  g6 {[%clk 0:02:35]} 20. a4 {[%clk 0:02:46]}  Bg7 {[%clk 0:02:35]} 21. Bd3 {[%clk 0:02:45]}  c6 {[%clk 0:02:30]} 22. Qc2 {[%clk 0:02:46]}  Nh5 {[%clk 0:02:28]} 23. Bf1 {[%clk 0:02:45]}  Nf4 {[%clk 0:02:14]} 24. b4 {[%clk 0:02:32]}  Qc7 {[%clk 0:02:06]} 25. dxe5 {[%clk 0:02:17]}  dxe5 {[%clk 0:02:00]} 26. c4 {[%clk 0:02:17]}  bxa4 {[%clk 0:01:54]} 27. Rxa4 {[%clk 0:01:59]}  c5 {[%clk 0:01:54]} 28. b5 {[%clk 0:01:59]}  Nb6 {[%clk 0:01:47]} 29. Ra3 {[%clk 0:01:59]}  axb5 {[%clk 0:01:46]} 30. cxb5 {[%clk 0:01:59]}  Ne6 {[%clk 0:01:25]} 31. Rc1 {[%clk 0:01:58]}  Rxa3 {[%clk 0:01:09]} 32. Bxa3 {[%clk 0:01:58]}  Rc8 {[%clk 0:01:09]} 33. Qb3 {[%clk 0:01:46]}  h5 {[%clk 0:00:59]} 34. Bb2 {[%clk 0:01:07]}  Nd4 {[%clk 0:00:52]} 35. Bxd4 {[%clk 0:00:37]}  exd4 {[%clk 0:00:51]} 36. Nc4 {[%clk 0:00:38]}  Bh6 {[%clk 0:00:36]} 37. Re1 {[%clk 0:00:32]}  Re8 {[%clk 0:00:29]} 38. Nxb6 {[%clk 0:00:29]}  Qxb6 {[%clk 0:00:30]} 39. Bc4 {[%clk 0:00:30]}  Rxe4 {[%clk 0:00:26]} 40. Rxe4 {[%clk 0:00:22]}  Bxe4 {[%clk 0:00:26]} 41. Bxf7+ {[%clk 0:00:23]}  Kg7 {[%clk 0:00:22]} 42. Bd5 {[%clk 0:00:24]}  Bf5 {[%clk 0:00:13]} 43. Qa4 {[%clk 0:00:18]}  Bf4 {[%clk 0:00:12]} 44. Qa8 {[%clk 0:00:15]}  Qb8 {[%clk 0:00:10]} 45. Qc6 {[%clk 0:00:13]}  Qd6 {[%clk 0:00:09]} 46. Qxd6 {[%clk 0:00:08]}  Bxd6 {[%clk 0:00:08]} 47. Nd2 {[%clk 0:00:09]}  Bc7 {[%clk 0:00:04]} 48. Nc4 {[%clk 0:00:09]}  Kf6 {[%clk 0:00:04]} 49. b6 {[%clk 0:00:09]}  Bb8 {[%clk 0:00:04]} 50. Na5 {[%clk 0:00:09]}  d3 {[%clk 0:00:03]} 51. Nc6 {[%clk 0:00:08]}  d2 {[%clk 0:00:03]} 52. Bf3 {[%clk 0:00:07]}  Bf4 {[%clk 0:00:03]} 53. g3 {[%clk 0:00:06]}  Bd6 {[%clk 0:00:02]} 54. Na5 {[%clk 0:00:06]}  Bxh3 {[%clk 0:00:02]} 55. Nc4 {[%clk 0:00:06]}  Bb8 {[%clk 0:00:01]} 56. Nxd2 {[%clk 0:00:06]}  Be6 {[%clk 0:00:02]} 57. Ne4+ {[%clk 0:00:06]}  Ke5 {[%clk 0:00:02]} 58. Nxc5 {[%clk 0:00:07]}  Bd5 {[%clk 0:00:02]} 59. Nd7+ {[%clk 0:00:07]}  Kd6 {[%clk 0:00:01]} 60. Bxd5 {[%clk 0:00:03]}  Kxd7 {[%clk 0:00:01]} 61. Bf7 {[%clk 0:00:03]}  g5 {[%clk 0:00:01]} 62. Bxh5 {[%clk 0:00:04]}  Kc6 {[%clk 0:00:02]} 63. Kg2 {[%clk 0:00:04]}  Kxb6 {[%clk 0:00:02]} 64. Kf3 {[%clk 0:00:05]}  Kc6 {[%clk 0:00:02]} 65. Kg4 {[%clk 0:00:05]}  Ba7 {[%clk 0:00:03]} 66. f3 {[%clk 0:00:05]}  Bf2 {[%clk 0:00:03]} 67. Kh3 {[%clk 0:00:03]}  Kd6 {[%clk 0:00:03]} 68. Bg6 {[%clk 0:00:04]}  Be1 {[%clk 0:00:03]} 69. Be4 {[%clk 0:00:04]}  Ke5 {[%clk 0:00:04]} 70. Kg4 {[%clk 0:00:05]}  Kf6 {[%clk 0:00:04]} 71. Bc2 {[%clk 0:00:05]}  Bd2 {[%clk 0:00:04]} 72. Bd3 {[%clk 0:00:06]}  Be1 {[%clk 0:00:05]} 73. Ba6 {[%clk 0:00:06]}  Bd2 {[%clk 0:00:05]} 74. Bc8 {[%clk 0:00:07]}  Bc1 {[%clk 0:00:05]} 75. Bf5 {[%clk 0:00:08]}  Bd2 {[%clk 0:00:06]} 76. Bd3 {[%clk 0:00:08]}  Be1 {[%clk 0:00:06]} 77. f4 {[%clk 0:00:09]}  gxf4 {[%clk 0:00:06]} 78. gxf4 {[%clk 0:00:10]}  Bd2 {[%clk 0:00:07]} 1/2-1/2


[Site "https://www.chess.com"]

[Event "Titled Tuesday Blitz April 18 Late 2023"]
[White "liwadas82"]
[Black "Indjic, Aleksandar"]
[BlackFideId "911925"]
[WhiteElo "2548"]
[BlackElo "2614"]
[Result "0-1"]
[Round "06"]
[TimeControl "180+2"]
[Date "2023.04.18"]
[WhiteClock "0:00:04"]
[BlackClock "0:00:24"]

1. e4 {[%clk 0:03:00]}  e5 {[%clk 0:02:58]} 2. Nf3 {[%clk 0:03:00]}  Nc6 {[%clk 0:02:58]} 3. Bb5 {[%clk 0:03:00]}  Bc5 {[%clk 0:02:59]} 4. c3 {[%clk 0:02:59]}  Nf6 {[%clk 0:02:58]} 5. O-O {[%clk 0:02:57]}  O-O {[%clk 0:02:44]} 6. d4 {[%clk 0:02:54]}  Bb6 {[%clk 0:02:43]} 7. Bg5 {[%clk 0:02:46]}  h6 {[%clk 0:02:36]} 8. Bh4 {[%clk 0:02:45]}  d6 {[%clk 0:02:24]} 9. Bxc6 {[%clk 0:02:36]}  bxc6 {[%clk 0:02:24]} 10. dxe5 {[%clk 0:02:36]}  dxe5 {[%clk 0:02:24]} 11. Qxd8 {[%clk 0:02:16]}  Rxd8 {[%clk 0:02:25]} 12. Nxe5 {[%clk 0:02:15]}  g5 {[%clk 0:02:24]} 13. Bg3 {[%clk 0:02:08]}  Nxe4 {[%clk 0:02:23]} 14. Nxc6 {[%clk 0:02:04]}  Re8 {[%clk 0:02:22]} 15. Na3 {[%clk 0:01:47]}  f5 {[%clk 0:02:22]} 16. Nc4 {[%clk 0:01:13]}  f4 {[%clk 0:02:20]} 17. Nxb6 {[%clk 0:01:12]}  axb6 {[%clk 0:02:21]} 18. f3 {[%clk 0:01:02]}  fxg3 {[%clk 0:02:19]} 19. fxe4 {[%clk 0:01:02]}  gxh2+ {[%clk 0:02:20]} 20. Kxh2 {[%clk 0:01:01]}  Kg7 {[%clk 0:01:53]} 21. Rad1 {[%clk 0:00:52]}  Rxa2 {[%clk 0:01:49]} 22. Rd2 {[%clk 0:00:46]}  Rxe4 {[%clk 0:01:41]} 23. Nb4 {[%clk 0:00:31]}  Ra5 {[%clk 0:01:37]} 24. Rd8 {[%clk 0:00:25]}  Be6 {[%clk 0:01:36]} 25. Re8 {[%clk 0:00:21]}  Bf5 {[%clk 0:01:33]} 26. Rd8 {[%clk 0:00:15]}  Rh4+ {[%clk 0:01:05]} 27. Kg1 {[%clk 0:00:15]}  Be4 {[%clk 0:01:05]} 28. Rd7+ {[%clk 0:00:13]}  Kg6 {[%clk 0:01:06]} 29. Rdf7 {[%clk 0:00:12]}  Rg4 {[%clk 0:01:05]} 30. R7f6+ {[%clk 0:00:11]}  Kh5 {[%clk 0:01:05]} 31. R6f2 {[%clk 0:00:09]}  Rf5 {[%clk 0:00:59]} 32. Nc2 {[%clk 0:00:07]}  Rxf2 {[%clk 0:00:43]} 33. Rxf2 {[%clk 0:00:08]}  Bxc2 {[%clk 0:00:42]} 34. Rxc2 {[%clk 0:00:09]}  Rf4 {[%clk 0:00:42]} 35. Rd2 {[%clk 0:00:09]}  Kg4 {[%clk 0:00:42]} 36. Kh2 {[%clk 0:00:09]}  h5 {[%clk 0:00:40]} 37. Rd7 {[%clk 0:00:08]}  Rc4 {[%clk 0:00:39]} 38. Rg7 {[%clk 0:00:07]}  b5 {[%clk 0:00:39]} 39. Rd7 {[%clk 0:00:07]}  h4 {[%clk 0:00:39]} 40. Rd5 {[%clk 0:00:06]}  c6 {[%clk 0:00:39]} 41. Re5 {[%clk 0:00:06]}  Kf4 {[%clk 0:00:38]} 42. Re8 {[%clk 0:00:06]}  Re4 {[%clk 0:00:37]} 43. Rc8 {[%clk 0:00:05]}  Re6 {[%clk 0:00:37]} 44. Rf8+ {[%clk 0:00:05]}  Ke3 {[%clk 0:00:36]} 45. Rg8 {[%clk 0:00:05]}  Re5 {[%clk 0:00:35]} 46. Rg6 {[%clk 0:00:06]}  c5 {[%clk 0:00:36]} 47. Rb6 {[%clk 0:00:06]}  c4 {[%clk 0:00:36]} 48. Rd6 {[%clk 0:00:06]}  Ke4 {[%clk 0:00:35]} 49. Rd4+ {[%clk 0:00:06]}  Ke3 {[%clk 0:00:35]} 50. Kh3 {[%clk 0:00:06]}  Kf2 {[%clk 0:00:27]} 51. Rd6 {[%clk 0:00:03]}  Re3+ {[%clk 0:00:27]} 52. Kh2 {[%clk 0:00:02]}  Re2 {[%clk 0:00:24]} 53. Rf6+ {[%clk 0:00:03]}  Ke1 {[%clk 0:00:23]} 54. Rf5 {[%clk 0:00:02]}  Rxb2 {[%clk 0:00:23]} 55. Rxg5 {[%clk 0:00:03]}  Kd2 {[%clk 0:00:24]} 56. Rg4 {[%clk 0:00:03]}  Kxc3 {[%clk 0:00:24]} 57. Rxh4 {[%clk 0:00:03]}  Kb3 {[%clk 0:00:24]} 58. Rf4 {[%clk 0:00:03]}  b4 {[%clk 0:00:25]} 59. Kh3 {[%clk 0:00:04]}  c3 {[%clk 0:00:24]} 60. g4 {[%clk 0:00:05]}  Rb1 {[%clk 0:00:25]} 61. g5 {[%clk 0:00:04]}  Rg1 {[%clk 0:00:25]} 62. Rf2 {[%clk 0:00:04]}  Rxg5 {[%clk 0:00:24]} 0-1


[Site "https://www.chess.com"]

[Event "Titled Tuesday Blitz April 18 Late 2023"]
[White "Naroditsky, Daniel"]
[Black "Rozman, Levy"]
[WhiteFideId "2026961"]
[BlackFideId "2039877"]
[WhiteElo "2633"]
[BlackElo "2376"]
[Result "1-0"]
[Round "06"]
[TimeControl "180+2"]
[Date "2023.04.18"]
[WhiteClock "0:00:24"]
[BlackClock "0:00:01"]

1. d4 {[%clk 0:03:00]}  d5 {[%clk 0:02:59]} 2. Nc3 {[%clk 0:03:01]}  Nf6 {[%clk 0:02:56]} 3. Bf4 {[%clk 0:03:01]}  e6 {[%clk 0:02:57]} 4. Nb5 {[%clk 0:03:01]}  Bb4+ {[%clk 0:02:57]} 5. c3 {[%clk 0:03:01]}  Ba5 {[%clk 0:02:58]} 6. a4 {[%clk 0:03:02]}  a6 {[%clk 0:02:50]} 7. b4 {[%clk 0:03:01]}  Bb6 {[%clk 0:02:48]} 8. a5 {[%clk 0:03:01]}  axb5 {[%clk 0:02:41]} 9. axb6 {[%clk 0:03:00]}  Rxa1 {[%clk 0:02:20]} 10. Qxa1 {[%clk 0:03:01]}  Na6 {[%clk 0:02:16]} 11. bxc7 {[%clk 0:02:53]}  Qd7 {[%clk 0:02:06]} 12. e3 {[%clk 0:02:41]}  O-O {[%clk 0:01:58]} 13. Nf3 {[%clk 0:02:31]}  Nxc7 {[%clk 0:01:34]} 14. Qa5 {[%clk 0:02:26]}  Nfe8 {[%clk 0:01:28]} 15. Bd3 {[%clk 0:02:21]}  f6 {[%clk 0:01:27]} 16. O-O {[%clk 0:02:18]}  Nd6 {[%clk 0:01:21]} 17. Qb6 {[%clk 0:02:13]}  Rd8 {[%clk 0:01:19]} 18. Ra1 {[%clk 0:02:04]}  Na6 {[%clk 0:00:41]} 19. Bxd6 {[%clk 0:01:36]}  Qxd6 {[%clk 0:00:41]} 20. Qxd6 {[%clk 0:01:37]}  Rxd6 {[%clk 0:00:42]} 21. Bxb5 {[%clk 0:01:37]}  Nc7 {[%clk 0:00:38]} 22. Bd3 {[%clk 0:01:32]}  Kf7 {[%clk 0:00:31]} 23. Kf1 {[%clk 0:01:28]}  Rc6 {[%clk 0:00:30]} 24. Ra3 {[%clk 0:01:28]}  h6 {[%clk 0:00:23]} 25. Ke2 {[%clk 0:01:22]}  Ke7 {[%clk 0:00:22]} 26. Kd2 {[%clk 0:01:22]}  Kd6 {[%clk 0:00:19]} 27. e4 {[%clk 0:01:07]}  g5 {[%clk 0:00:15]} 28. e5+ {[%clk 0:01:06]}  Ke7 {[%clk 0:00:12]} 29. exf6+ {[%clk 0:01:07]}  Kxf6 {[%clk 0:00:13]} 30. Ne5 {[%clk 0:01:07]}  Rb6 {[%clk 0:00:11]} 31. b5 {[%clk 0:00:57]}  Ke7 {[%clk 0:00:04]} 32. c4 {[%clk 0:00:35]}  dxc4 {[%clk 0:00:04]} 33. Bxc4 {[%clk 0:00:35]}  Bd7 {[%clk 0:00:04]} 34. Rh3 {[%clk 0:00:31]}  Bxb5 {[%clk 0:00:02]} 35. Rxh6 {[%clk 0:00:32]}  Bxc4 {[%clk 0:00:02]} 36. Rh7+ {[%clk 0:00:32]}  Kf6 {[%clk 0:00:01]} 37. Rf7# {[%clk 0:00:24]} 1-0


[Site "https://www.chess.com"]

[Event "Titled Tuesday Blitz April 18 Late 2023"]
[White "Svane, Rasmus"]
[Black "Spata, German"]
[WhiteFideId "4657101"]
[BlackFideId "113026"]
[WhiteElo "2597"]
[BlackElo "2238"]
[Result "1-0"]
[Round "06"]
[TimeControl "180+2"]
[Date "2023.04.18"]
[WhiteClock "0:02:19"]
[BlackClock "0:00:50"]

1. Nf3 {[%clk 0:03:00]}  Nf6 {[%clk 0:02:54]} 2. g3 {[%clk 0:03:01]}  d5 {[%clk 0:02:44]} 3. Bg2 {[%clk 0:03:01]}  c6 {[%clk 0:02:44]} 4. O-O {[%clk 0:03:01]}  Bf5 {[%clk 0:02:44]} 5. c4 {[%clk 0:03:01]}  e6 {[%clk 0:02:44]} 6. Qb3 {[%clk 0:03:02]}  Qb6 {[%clk 0:02:44]} 7. d3 {[%clk 0:03:02]}  Nbd7 {[%clk 0:02:40]} 8. cxd5 {[%clk 0:03:02]}  cxd5 {[%clk 0:02:38]} 9. Qxb6 {[%clk 0:03:01]}  Nxb6 {[%clk 0:02:35]} 10. Nc3 {[%clk 0:03:02]}  Be7 {[%clk 0:02:33]} 11. Nb5 {[%clk 0:02:55]}  O-O {[%clk 0:02:32]} 12. Bf4 {[%clk 0:02:55]}  a6 {[%clk 0:02:28]} 13. Nd6 {[%clk 0:02:56]}  Bxd6 {[%clk 0:02:24]} 14. Bxd6 {[%clk 0:02:56]}  Rfc8 {[%clk 0:02:24]} 15. Nd4 {[%clk 0:02:57]}  Bg6 {[%clk 0:02:23]} 16. f4 {[%clk 0:02:58]}  Ne8 {[%clk 0:02:02]} 17. Ba3 {[%clk 0:02:58]}  h5 {[%clk 0:01:47]} 18. Rac1 {[%clk 0:02:57]}  Rxc1 {[%clk 0:01:42]} 19. Rxc1 {[%clk 0:02:58]}  Rc8 {[%clk 0:01:42]} 20. Rxc8 {[%clk 0:02:58]}  Nxc8 {[%clk 0:01:43]} 21. f5 {[%clk 0:02:58]}  Bxf5 {[%clk 0:01:33]} 22. Nxf5 {[%clk 0:02:58]}  exf5 {[%clk 0:01:34]} 23. Bxd5 {[%clk 0:02:59]}  Ned6 {[%clk 0:01:32]} 24. e4 {[%clk 0:02:49]}  fxe4 {[%clk 0:01:31]} 25. dxe4 {[%clk 0:02:50]}  b5 {[%clk 0:01:14]} 26. b3 {[%clk 0:02:40]}  a5 {[%clk 0:01:05]} 27. Bc5 {[%clk 0:02:39]}  b4 {[%clk 0:01:01]} 28. e5 {[%clk 0:02:28]}  Nb5 {[%clk 0:01:01]} 29. e6 {[%clk 0:02:24]}  fxe6 {[%clk 0:00:50]} 30. Bxe6+ {[%clk 0:02:23]}  Kh7 {[%clk 0:00:50]} 31. Bxc8 {[%clk 0:02:24]}  Nc3 {[%clk 0:00:50]} 32. Bb6 {[%clk 0:02:19]} 1-0


[Site "https://www.chess.com"]

[Event "Titled Tuesday Blitz April 18 Late 2023"]
[White "Kosteniuk, Alexandra"]
[Black "Terry, Renato"]
[WhiteFideId "4128125"]
[BlackFideId "3803457"]
[WhiteElo "2453"]
[BlackElo "2575"]
[Result "0-1"]
[Round "06"]
[TimeControl "180+2"]
[Date "2023.04.18"]
[WhiteClock "0:00:01"]
[BlackClock "0:00:25"]

1. e4 {[%clk 0:03:00]}  g6 {[%clk 0:02:58]} 2. d4 {[%clk 0:03:00]}  Bg7 {[%clk 0:02:20]} 3. Nc3 {[%clk 0:02:59]}  c6 {[%clk 0:02:20]} 4. f4 {[%clk 0:02:57]}  d5 {[%clk 0:02:21]} 5. e5 {[%clk 0:02:56]}  Nh6 {[%clk 0:02:22]} 6. Nf3 {[%clk 0:02:56]}  f6 {[%clk 0:02:22]} 7. Be3 {[%clk 0:02:43]}  O-O {[%clk 0:02:20]} 8. Be2 {[%clk 0:02:37]}  Bg4 {[%clk 0:02:19]} 9. O-O {[%clk 0:02:36]}  Bxf3 {[%clk 0:02:18]} 10. Bxf3 {[%clk 0:02:28]}  Nf5 {[%clk 0:02:18]} 11. Bf2 {[%clk 0:02:28]}  fxe5 {[%clk 0:02:19]} 12. dxe5 {[%clk 0:02:24]}  e6 {[%clk 0:02:19]} 13. Qe1 {[%clk 0:02:21]}  Nd7 {[%clk 0:02:19]} 14. Rd1 {[%clk 0:02:17]}  g5 {[%clk 0:02:17]} 15. g4 {[%clk 0:01:52]}  Nh6 {[%clk 0:02:11]} 16. fxg5 {[%clk 0:01:32]}  Qxg5 {[%clk 0:02:11]} 17. Be3 {[%clk 0:01:30]}  Qxe5 {[%clk 0:02:08]} 18. Qd2 {[%clk 0:01:30]}  Nf7 {[%clk 0:02:01]} 19. Rde1 {[%clk 0:01:19]}  Qd6 {[%clk 0:01:58]} 20. Bg2 {[%clk 0:01:15]}  Nfe5 {[%clk 0:01:55]} 21. Bf4 {[%clk 0:01:12]}  Qc5+ {[%clk 0:01:54]} 22. Kh1 {[%clk 0:01:05]}  Nc4 {[%clk 0:01:54]} 23. Qe2 {[%clk 0:01:04]}  e5 {[%clk 0:01:51]} 24. Bc1 {[%clk 0:01:03]}  e4 {[%clk 0:01:46]} 25. Nd1 {[%clk 0:00:59]}  Nce5 {[%clk 0:01:40]} 26. Ne3 {[%clk 0:00:57]}  Rxf1+ {[%clk 0:01:20]} 27. Rxf1 {[%clk 0:00:57]}  Rf8 {[%clk 0:01:21]} 28. Nf5 {[%clk 0:00:57]}  Qc4 {[%clk 0:01:19]} 29. Qd1 {[%clk 0:00:52]}  Ng6 {[%clk 0:00:55]} 30. b3 {[%clk 0:00:50]}  Qc3 {[%clk 0:00:55]} 31. Bd2 {[%clk 0:00:41]}  Qe5 {[%clk 0:00:54]} 32. Qe1 {[%clk 0:00:38]}  Nf6 {[%clk 0:00:47]} 33. Nxg7 {[%clk 0:00:29]}  Kxg7 {[%clk 0:00:48]} 34. g5 {[%clk 0:00:26]}  Nh5 {[%clk 0:00:48]} 35. Rxf8 {[%clk 0:00:20]}  Kxf8 {[%clk 0:00:44]} 36. Qf2+ {[%clk 0:00:20]}  Ke8 {[%clk 0:00:40]} 37. Qxa7 {[%clk 0:00:20]}  Qa1+ {[%clk 0:00:40]} 38. Qg1 {[%clk 0:00:18]}  Qxa2 {[%clk 0:00:40]} 39. Qd1 {[%clk 0:00:18]}  Nhf4 {[%clk 0:00:40]} 40. Bf1 {[%clk 0:00:17]}  Qb2 {[%clk 0:00:38]} 41. Qg4 {[%clk 0:00:15]}  Qe5 {[%clk 0:00:28]} 42. Qc8+ {[%clk 0:00:15]}  Kf7 {[%clk 0:00:29]} 43. Qxb7+ {[%clk 0:00:15]}  Ne7 {[%clk 0:00:29]} 44. Bb4 {[%clk 0:00:15]}  e3 {[%clk 0:00:27]} 45. Be1 {[%clk 0:00:01]}  Qe4+ {[%clk 0:00:24]} 46. Kg1 {[%clk 0:00:01]}  e2 {[%clk 0:00:25]} 0-1


[Site "https://www.chess.com"]

[Event "Titled Tuesday Blitz April 18 Late 2023"]
[White "Marek, Matyas"]
[Black "Eljanov, Pavel"]
[WhiteFideId "335398"]
[BlackFideId "14102951"]
[WhiteElo "2279"]
[BlackElo "2598"]
[Result "0-1"]
[Round "06"]
[TimeControl "180+2"]
[Date "2023.04.18"]
[WhiteClock "0:01:01"]
[BlackClock "0:02:05"]

1. e4 {[%clk 0:03:00]}  c6 {[%clk 0:02:59]} 2. d4 {[%clk 0:02:59]}  d5 {[%clk 0:03:00]} 3. f3 {[%clk 0:03:00]}  e6 {[%clk 0:02:59]} 4. Nc3 {[%clk 0:03:00]}  Bb4 {[%clk 0:02:59]} 5. Bf4 {[%clk 0:02:58]}  Ne7 {[%clk 0:02:58]} 6. Qd3 {[%clk 0:02:58]}  b6 {[%clk 0:02:53]} 7. Ne2 {[%clk 0:02:50]}  Ba6 {[%clk 0:02:53]} 8. Qe3 {[%clk 0:02:50]}  O-O {[%clk 0:02:48]} 9. O-O-O {[%clk 0:02:50]}  c5 {[%clk 0:02:43]} 10. a3 {[%clk 0:02:35]}  Bxc3 {[%clk 0:02:44]} 11. Nxc3 {[%clk 0:02:35]}  Bxf1 {[%clk 0:02:43]} 12. Rhxf1 {[%clk 0:02:35]}  Nbc6 {[%clk 0:02:43]} 13. dxc5 {[%clk 0:01:36]}  d4 {[%clk 0:02:41]} 14. Qe2 {[%clk 0:01:32]}  bxc5 {[%clk 0:02:39]} 15. Qc4 {[%clk 0:01:25]}  Ng6 {[%clk 0:02:22]} 16. Ne2 {[%clk 0:01:13]}  Nxf4 {[%clk 0:02:18]} 17. Nxf4 {[%clk 0:01:13]}  Qg5 {[%clk 0:02:18]} 18. g3 {[%clk 0:01:13]}  Ne5 {[%clk 0:02:05]} 19. Qxc5 {[%clk 0:01:01]}  Nd3+ {[%clk 0:02:05]} 0-1


[Site "https://www.chess.com"]

[Event "Titled Tuesday Blitz April 18 Late 2023"]
[White "Demchenko, Anton"]
[Black "Prohaszka, Peter"]
[WhiteFideId "4160258"]
[BlackFideId "726265"]
[WhiteElo "2545"]
[BlackElo "2626"]
[Result "1-0"]
[Round "06"]
[TimeControl "180+2"]
[Date "2023.04.18"]
[WhiteClock "0:01:15"]
[BlackClock "0:00:02"]

1. e4 {[%clk 0:02:55]}  c6 {[%clk 0:02:47]} 2. d4 {[%clk 0:02:55]}  d5 {[%clk 0:02:45]} 3. e5 {[%clk 0:02:55]}  Bf5 {[%clk 0:02:38]} 4. Bd3 {[%clk 0:02:55]}  Bxd3 {[%clk 0:02:35]} 5. Qxd3 {[%clk 0:02:56]}  Qa5+ {[%clk 0:02:26]} 6. c3 {[%clk 0:02:57]}  Qb5 {[%clk 0:02:22]} 7. Qd1 {[%clk 0:02:57]}  e6 {[%clk 0:02:21]} 8. Ne2 {[%clk 0:02:57]}  a5 {[%clk 0:02:10]} 9. a4 {[%clk 0:02:52]}  Qa6 {[%clk 0:02:07]} 10. O-O {[%clk 0:02:52]}  Ne7 {[%clk 0:02:07]} 11. Ng3 {[%clk 0:02:50]}  Nd7 {[%clk 0:01:53]} 12. Be3 {[%clk 0:02:47]}  Nf5 {[%clk 0:01:27]} 13. Nxf5 {[%clk 0:02:45]}  exf5 {[%clk 0:01:28]} 14. Re1 {[%clk 0:02:28]}  Be7 {[%clk 0:01:27]} 15. e6 {[%clk 0:02:24]}  fxe6 {[%clk 0:01:21]} 16. Bf4 {[%clk 0:02:24]}  Nf8 {[%clk 0:01:11]} 17. Qh5+ {[%clk 0:01:59]}  g6 {[%clk 0:00:51]} 18. Qh6 {[%clk 0:01:54]}  Bf6 {[%clk 0:00:49]} 19. Nd2 {[%clk 0:01:48]}  b6 {[%clk 0:00:41]} 20. Nf3 {[%clk 0:01:36]}  Qb7 {[%clk 0:00:41]} 21. Be5 {[%clk 0:01:35]}  Qe7 {[%clk 0:00:35]} 22. Re2 {[%clk 0:01:29]}  O-O-O {[%clk 0:00:29]} 23. Rae1 {[%clk 0:01:22]}  Rg8 {[%clk 0:00:29]} 24. Qd2 {[%clk 0:01:17]}  g5 {[%clk 0:00:27]} 25. Bxf6 {[%clk 0:01:14]}  Qxf6 {[%clk 0:00:28]} 26. b4 {[%clk 0:01:14]}  g4 {[%clk 0:00:14]} 27. Ne5 {[%clk 0:01:15]}  Kc7 {[%clk 0:00:10]} 28. bxa5 {[%clk 0:01:15]}  bxa5 {[%clk 0:00:09]} 29. c4 {[%clk 0:01:15]}  f4 {[%clk 0:00:05]} 30. Qxa5+ {[%clk 0:01:14]}  Kc8 {[%clk 0:00:03]} 31. Qa8+ {[%clk 0:01:14]}  Kc7 {[%clk 0:00:03]} 32. Qxc6+ {[%clk 0:01:14]}  Kb8 {[%clk 0:00:02]} 33. Rb2+ {[%clk 0:01:15]} 1-0


[Site "https://www.chess.com"]

[Event "Titled Tuesday Blitz April 18 Late 2023"]
[White "Sieciechowicz, Marcin"]
[Black "Bartel, Mateusz"]
[WhiteFideId "1130170"]
[BlackFideId "1112635"]
[WhiteElo "2302"]
[BlackElo "2521"]
[Result "1/2-1/2"]
[Round "06"]
[TimeControl "180+2"]
[Date "2023.04.18"]
[WhiteClock "0:00:10"]
[BlackClock "0:00:13"]

1. d4 {[%clk 0:02:58]}  Nf6 {[%clk 0:02:59]} 2. c4 {[%clk 0:02:58]}  Nc6 {[%clk 0:02:59]} 3. Nc3 {[%clk 0:02:56]}  e5 {[%clk 0:02:57]} 4. d5 {[%clk 0:02:56]}  Ne7 {[%clk 0:02:53]} 5. Bg5 {[%clk 0:02:52]}  d6 {[%clk 0:02:48]} 6. Bxf6 {[%clk 0:02:50]}  gxf6 {[%clk 0:02:48]} 7. g3 {[%clk 0:02:50]}  f5 {[%clk 0:02:44]} 8. Bg2 {[%clk 0:02:51]}  Bg7 {[%clk 0:02:44]} 9. Nf3 {[%clk 0:02:51]}  O-O {[%clk 0:02:43]} 10. Qd2 {[%clk 0:02:48]}  c5 {[%clk 0:02:33]} 11. h4 {[%clk 0:02:48]}  Kh8 {[%clk 0:02:28]} 12. h5 {[%clk 0:02:48]}  h6 {[%clk 0:02:28]} 13. Nh4 {[%clk 0:02:46]}  Ng8 {[%clk 0:02:20]} 14. e4 {[%clk 0:02:35]}  Ne7 {[%clk 0:01:57]} 15. O-O-O {[%clk 0:02:11]}  fxe4 {[%clk 0:01:46]} 16. Bxe4 {[%clk 0:02:12]}  f5 {[%clk 0:01:47]} 17. Bc2 {[%clk 0:02:12]}  a6 {[%clk 0:01:44]} 18. Ng6+ {[%clk 0:01:55]}  Nxg6 {[%clk 0:01:29]} 19. hxg6 {[%clk 0:01:56]}  Kg8 {[%clk 0:01:29]} 20. Rxh6 {[%clk 0:01:45]}  Bxh6 {[%clk 0:01:30]} 21. Qxh6 {[%clk 0:01:46]}  Qe7 {[%clk 0:01:30]} 22. Rh1 {[%clk 0:01:46]}  Qg7 {[%clk 0:01:30]} 23. Qg5 {[%clk 0:01:37]}  Qf6 {[%clk 0:01:25]} 24. Qh5 {[%clk 0:01:27]}  Qg7 {[%clk 0:01:25]} 25. g4 {[%clk 0:01:25]}  fxg4 {[%clk 0:01:12]} 26. Ne4 {[%clk 0:01:25]}  Bf5 {[%clk 0:01:12]} 27. Nxd6 {[%clk 0:01:06]}  Bxc2 {[%clk 0:01:08]} 28. Kxc2 {[%clk 0:01:06]}  Rxf2+ {[%clk 0:01:07]} 29. Kb1 {[%clk 0:01:02]}  Raf8 {[%clk 0:00:56]} 30. Nf7 {[%clk 0:00:37]}  R8xf7 {[%clk 0:00:56]} 31. gxf7+ {[%clk 0:00:37]}  Rxf7 {[%clk 0:00:56]} 32. a3 {[%clk 0:00:34]}  Qh7+ {[%clk 0:00:47]} 33. Qxh7+ {[%clk 0:00:31]}  Rxh7 {[%clk 0:00:48]} 34. Rg1 {[%clk 0:00:28]}  Rg7 {[%clk 0:00:39]} 35. Kc2 {[%clk 0:00:28]}  Kf7 {[%clk 0:00:39]} 36. Kd3 {[%clk 0:00:29]}  Kf6 {[%clk 0:00:40]} 37. Ke4 {[%clk 0:00:28]}  Rg5 {[%clk 0:00:38]} 38. b4 {[%clk 0:00:25]}  b6 {[%clk 0:00:36]} 39. bxc5 {[%clk 0:00:23]}  bxc5 {[%clk 0:00:37]} 40. Rg2 {[%clk 0:00:19]}  Ke7 {[%clk 0:00:36]} 41. Rg1 {[%clk 0:00:18]}  a5 {[%clk 0:00:34]} 42. a4 {[%clk 0:00:17]}  Kd6 {[%clk 0:00:33]} 43. Rg2 {[%clk 0:00:17]}  g3 {[%clk 0:00:26]} 44. Kf3 {[%clk 0:00:17]}  Rf5+ {[%clk 0:00:26]} 45. Kxg3 {[%clk 0:00:11]}  Rf4 {[%clk 0:00:27]} 46. Rc2 {[%clk 0:00:08]}  Rd4 {[%clk 0:00:25]} 47. Kf3 {[%clk 0:00:08]}  Rd3+ {[%clk 0:00:13]} 48. Ke4 {[%clk 0:00:08]}  Rd4+ {[%clk 0:00:13]} 49. Ke3 {[%clk 0:00:08]}  Kd7 {[%clk 0:00:13]} 50. Kf3 {[%clk 0:00:09]}  Ke7 {[%clk 0:00:13]} 51. Ke3 {[%clk 0:00:09]}  Kd6 {[%clk 0:00:13]} 52. Rc1 {[%clk 0:00:09]}  Kd7 {[%clk 0:00:13]} 53. Rc2 {[%clk 0:00:09]}  Kc7 {[%clk 0:00:12]} 54. Rc1 {[%clk 0:00:09]}  Kd6 {[%clk 0:00:12]} 55. Rc2 {[%clk 0:00:09]}  Kd7 {[%clk 0:00:12]} 56. Rc1 {[%clk 0:00:09]}  Kd6 {[%clk 0:00:13]} 57. Rc2 {[%clk 0:00:10]} 1/2-1/2


[Site "https://www.chess.com"]